fUSD/lending_fUSD_20250617
["ID","MTS","AMOUNT","RATE_DAILY","PERIOD"]
[366293691,1750176672671,-151.0,0.00016602,2]
[366293692,1750176672681,-490.0,0.00016602,2]
[366293693,1750176672692,-151.0,0.00016602,2]
[366293694,1750176672703,-490.0,0.00016602,2]
[366293695,1750176672716,-490.0,0.00016602,2]
[366293696,1750176672726,-490.0,0.00016602,2]
[366293697,1750176672737,-490.0,0.00016602,2]
[366293698,1750176672747,-538.91,0.00016602,2]
[366293699,1750176672757,-490.0,0.00016602,2]
[366293700,1750176672767,-490.0,0.00016602,2]
[366293701,1750176672778,-439.90382135,0.00016602,2]
[366293702,1750176672790,-490.0,0.00016602,2]
[366293703,1750176672801,-490.0,0.00016602,2]
[366293704,1750176672811,-490.0,0.00016602,2]
[366293705,1750176672821,-490.0,0.00016602,2]
[366293706,1750176672831,-490.0,0.00016602,2]
[366293707,1750176672841,-490.0,0.00016602,2]
[366293708,1750176672851,-490.0,0.00016602,2]
[366293709,1750176672862,-151.0,0.00016602,2]
[366293710,1750176672874,-151.0,0.00016602,2]
[366293711,1750176672885,-251.0,0.00016602,2]
[366293712,1750176672896,-490.0,0.00016602,2]
[366293713,1750176672906,-151.0,0.00016602,2]
[366293714,1750176672918,-268.758324,0.00016602,2]
[366293715,1750176672929,-490.0,0.00016602,2]
[366293716,1750176672940,-490.0,0.00016602,2]
[366293717,1750176672951,-490.0,0.00016602,2]
[366293718,1750176672964,-490.0,0.00016602,2]
[366293719,1750176672974,-490.0,0.00016602,2]
[366293720,1750176672985,-490.0,0.00016602,2]
[366293721,1750176672995,-490.0,0.00016602,2]
[366293722,1750176673005,-151.0,0.00016602,2]
[366293723,1750176673015,-490.0,0.00016602,2]
[366293724,1750176673025,-490.0,0.00016602,2]
[366293725,1750176673036,-490.0,0.00016602,2]
[366293726,1750176673046,-140.72814617,0.00016602,2]
[366293727,1750176673066,-95.94820283,0.00016602,2]
[366293728,1750176673077,-490.0,0.00016602,2]
[366293729,1750176673088,-490.0,0.00016602,2]
[366293730,1750176673099,-236.676349,0.00016602,2]
[366293731,1750176673110,-490.0,0.00016602,2]
[366293732,1750176673120,-490.0,0.00016602,2]
[366293733,1750176673132,-2258.998472,0.00016602,2]
[366293734,1750176673142,-151.0,0.00016602,2]
[366293735,1750176673153,-490.0,0.00016602,2]
[366293736,1750176673164,-490.0,0.00016602,2]
[366293737,1750176673174,-490.0,0.00016602,2]
[366293738,1750176673185,-490.69535708,0.00016602,2]
[366293739,1750176673196,-192.67798449,0.00016602,2]
[366293740,1750176673207,-490.0,0.00016602,2]
[366293741,1750176673219,-490.0,0.00016602,2]
[366293742,1750176673231,-490.0,0.00016602,2]
[366293743,1750176673242,-397.80112735,0.00016602,2]
[366293744,1750176673252,-490.0,0.00016602,2]
[366293745,1750176673263,-480.0,0.00016602,2]
[366293746,1750176673584,-282.63096553,0.00016602,2]
[366293747,1750176673595,-490.0,0.00016602,2]
[366293748,1750176673605,-490.0,0.00016602,2]
[366293749,1750176673615,-356.88781542,0.00016602,2]
[366293750,1750176673625,-490.0,0.00016602,2]
[366293751,1750176673634,-359.52854536,0.00016602,2]
[366293752,1750176673644,-601.34,0.00016602,2]
[366293753,1750176673654,-490.0,0.00016602,2]
[366293754,1750176673664,-490.0,0.00016602,2]
[366293755,1750176673674,-565.33,0.00016602,2]
[366293756,1750176673684,-220.911134,0.00016602,2]
[366293757,1750176673694,-490.0,0.00016602,2]
[366293758,1750176673708,-248.67163318,0.00016602,2]
[366293759,1750176673720,-490.0,0.00016602,2]
[366293760,1750176673729,-220.911134,0.00016602,2]
[366293761,1750176673739,-490.0,0.00016602,2]
[366293762,1750176673749,-490.0,0.00016602,2]
[366293763,1750176673759,-492.94937854,0.00016602,2]
[366293764,1750176673771,-490.0,0.00016602,2]
[366293765,1750176673783,-490.0,0.00016602,2]
[366293766,1750176673797,-163.77040321,0.00016602,2]
[366293767,1750176673816,-812.568249,0.00016602,2]
[366293768,1750176673831,-490.0,0.00016602,2]
[366293769,1750176673841,-812.568249,0.00016602,2]
[366293770,1750176673851,-490.0,0.00016602,2]
[366293771,1750176673861,-490.0,0.00016602,2]
[366293772,1750176673872,-490.0,0.00016602,2]
[366293773,1750176673882,-490.0,0.00016602,2]
[366293774,1750176673892,-490.0,0.00016602,2]
[366293775,1750176673902,-490.0,0.00016602,2]
[366293776,1750176673912,-490.0,0.00016602,2]
[366293777,1750176673922,-490.0,0.00016602,2]
[366293778,1750176673932,-360.73487051,0.00016602,2]
[366293779,1750176694356,1000.0,0.00024,120]
[366293780,1750176810780,150.0,0.00024627,120]
[366293781,1750177053108,150.0,0.00013116,2]
[366293782,1750177102231,500.0,0.00024657,120]
[366293783,1750177110105,500.0,0.00024657,120]
[366293784,1750177116649,500.0,0.00024657,120]
[366293785,1750177125677,500.0,0.00024657,120]
[366293786,1750177147603,774.0,0.00024657,120]
[366293787,1750177239516,415.79344649,0.00024657,120]
[366293788,1750177391591,300.0,0.00024658,120]
[366293802,1750177831702,-282.05,0.00013699,2]
[366293803,1750177831713,-600.0,0.00013849,4]
[366293804,1750177831723,-600.31615386,0.00014,2]
[366293805,1750177831733,-172.5164107,0.00014886,2]
[366293806,1750177831743,-1190.21602017,0.000149,2]
[366293807,1750177831753,-1319.58044075,0.00014968,2]
[366293808,1750177831762,-238.586343,0.00014968,2]
[366293809,1750177831772,-300.0,0.00014986,2]
[366293810,1750177831782,-300.0,0.00014986,2]
[366293811,1750177831791,-1200.0,0.00014986,2]
[366293812,1750177831802,-154.0,0.00014987,2]
[366293813,1750177831812,-154.0,0.00014987,2]
[366293814,1750177831822,-154.0,0.00014987,2]
[366293815,1750177831831,-154.0,0.00014987,2]
[366293816,1750177831841,-154.0,0.00014987,2]
[366293817,1750177831851,-154.0,0.00014987,2]
[366293818,1750177831860,-154.0,0.00014987,2]
[366293819,1750177831871,-154.0,0.00014987,2]
[366293820,1750177831880,-154.0,0.00014987,2]
[366293821,1750177831890,-154.0,0.00014987,2]
[366293822,1750177831900,-250.0,0.00015,2]
[366293823,1750177831909,-159.03,0.00015,2]
[366293824,1750177831918,-500.0,0.00015068,2]
[366293825,1750177831928,-600.0,0.00015068,4]
[366293826,1750177831938,-159.21,0.00015082,2]
[366293827,1750177831949,-150.1,0.00015082,2]
[366293828,1750177831958,-250.0,0.00015298,2]
[366293829,1750177831968,-1303.04555801,0.00015299,2]
[366293830,1750177831989,-4559.80222408,0.00015299,2]
[366293831,1750177832001,-18037.15221791,0.00015299,2]
[366293832,1750177832013,-720.30312071,0.00015323,2]
[366293833,1750177832053,-251.0,0.00015323,2]
[366293834,1750177832067,-28.69687929,0.00015323,2]
[366293835,1750177832079,-200.0,0.00015341,7]
[366293836,1750177832089,-190.60556397,0.00015379,2]
[366293872,1750177837635,-262.999995,0.00014886,2]
[366293873,1750177837681,-633.39338319,0.00014886,2]
[366293874,1750177837702,-84.02239015,0.00014886,2]
[366293875,1750177837713,-166.0,0.00014968,2]
[366293876,1750177837723,-109.39443603,0.00015379,2]
[366293877,1750177837733,-666.0,0.00015433,2]
[366293878,1750177837742,-1957.856,0.00015614,2]
[366293879,1750177837753,-207.4,0.00015614,2]
[366293880,1750177837763,-128.96055903,0.00015644,2]
[366293881,1750177837774,-371.03944097,0.00015644,2]
[366293882,1750177837784,-266.04707573,0.00015669,2]
[366293883,1750177837796,-1764.24959627,0.00015669,2]
[366293884,1750177837806,-461.68,0.00015669,2]
[366293885,1750177837816,-461.68,0.00015669,2]
[366293886,1750177837826,-2105.41764886,0.00015724,2]
[366293887,1750177837835,-1508.379008,0.00015779,2]
[366293888,1750177837845,-200.0,0.000158,5]
[366293889,1750177837855,-500.0,0.000159,5]
[366293890,1750177837864,-947.5022704,0.000159,2]
[366293891,1750177837874,-301.77,0.00015971,2]
[366293892,1750177837884,-150.48,0.00015971,2]
[366293893,1750177837894,-947.5022704,0.00016038,2]
[366293894,1750177837903,-500.0,0.00016164,2]
[366293895,1750177837912,-947.5022704,0.00016176,2]
[366293896,1750177837922,-157.65,0.000162,2]
[366293897,1750177837931,-739.17341438,0.00016219,2]
[366293898,1750177837946,-200.95488562,0.00016219,2]
[366293899,1750177837955,-151.0,0.00016242,2]
[366293901,1750177837965,-83.52701858,0.00016255,2]
[366293903,1750177837977,-756.05151745,0.00016255,2]
[366293905,1750177837987,-1179.422418,0.00016269,2]
[366293907,1750177837996,-461.68,0.000163,2]
[366293909,1750177838007,-461.68,0.000163,2]
[366293911,1750177838017,-168.0,0.00016306,2]
[366293913,1750177838026,-947.5022704,0.00016314,2]
[366293915,1750177838035,-4091.0,0.0001632,2]
[366293918,1750177838045,-802.0,0.0001632,2]
[366293920,1750177838054,-3273.95047436,0.00016338,2]
[366293922,1750177838063,-555.05712795,0.00016338,2]
[366293924,1750177838073,-179.18203781,0.00016338,2]
[366293926,1750177838086,-228.60915878,0.00016338,2]
[366293928,1750177838095,-273.66063358,0.00016338,2]
[366293930,1750177838104,-609.2287,0.00016338,2]
[366293932,1750177838113,-265.03780647,0.00016365,2]
[366293934,1750177838123,-3273.95047436,0.00016375,2]
[366293936,1750177838133,-500.0,0.00016388,2]
[366293938,1750177838143,-200.0,0.00016388,2]
[366293940,1750177838153,-21984.49075672,0.00016391,2]
[366293942,1750177838163,-249.8567382,0.00016396,2]
[366293944,1750177838172,-1000.0,0.000164,2]
[366293945,1750177838182,-420.0,0.00016402,2]
[366293946,1750177838192,-3273.95047436,0.00016411,2]
[366293947,1750177838202,-206.0,0.00016423,2]
[366293948,1750177838211,-2220.6,0.00016428,2]
[366293949,1750177838220,-167.74196409,0.00016428,2]
[366293950,1750177838229,-1092.23379674,0.00016436,5]
[366293951,1750177838239,-460.47413885,0.00016437,2]
[366293952,1750177838248,-500.0,0.00016437,2]
[366293953,1750177838257,-368.08293853,0.00016437,2]
[366293954,1750177838267,-500.0,0.00016437,2]
[366293955,1750177838276,-314.80589465,0.00016437,2]
[366293956,1750177838286,-516.65513039,0.00016437,2]
[366293957,1750177838297,-500.0,0.00016437,2]
[366293958,1750177838306,-500.0,0.00016437,2]
[366293959,1750177838316,-596.42610835,0.00016437,2]
[366293960,1750177838325,-500.0,0.00016437,2]
[366293961,1750177838334,-170.19983462,0.00016437,2]
[366293962,1750177838344,-500.0,0.00016437,2]
[366293963,1750177838353,-500.0,0.00016437,2]
[366293964,1750177838363,-1092.23379674,0.00016437,5]
[366293965,1750177838373,-1092.23379678,0.00016437,5]
[366293966,1750177838382,-1092.23379674,0.00016437,5]
[366293967,1750177838392,-1092.23379674,0.00016437,5]
[366293968,1750177838402,-1092.23379674,0.00016437,5]
[366293969,1750177838411,-1092.23379674,0.00016437,5]
[366293970,1750177838421,-1092.23379674,0.00016437,5]
[366293971,1750177838431,-1526.0,0.00016438,2]
[366293972,1750177838441,-151.0,0.00016438,2]
[366293973,1750177838452,-166.250541,0.00016438,2]
[366293974,1750177838461,-151.0,0.00016438,2]
[366293975,1750177838471,-416.418286,0.00016438,2]
[366293976,1750177838480,-490.0,0.00016438,2]
[366293977,1750177838490,-490.0,0.00016438,2]
[366293978,1750177838500,-490.0,0.00016438,2]
[366293979,1750177838509,-421.31116083,0.00016438,2]
[366293980,1750177838519,-461.00809855,0.00016438,2]
[366293981,1750177838529,-490.0,0.00016438,2]
[366293982,1750177838539,-490.0,0.00016438,2]
[366293983,1750177838549,-490.0,0.00016438,2]
[366293984,1750177838559,-490.0,0.00016438,2]
[366293985,1750177838570,-490.0,0.00016438,2]
[366293986,1750177838580,-490.0,0.00016438,2]
[366293987,1750177838589,-460.0,0.00016438,2]
[366293988,1750177838600,-151.0,0.00016438,2]
[366293989,1750177838610,-500.0,0.00016438,2]
[366293990,1750177838621,-500.0,0.00016438,2]
[366293991,1750177838631,-155.51517274,0.00016438,2]
[366293992,1750177838641,-500.0,0.00016438,2]
[366293993,1750177838655,-491.49169122,0.00016438,2]
[366293994,1750177838665,-611.81689485,0.00016438,2]
[366293995,1750177838676,-250.10000001,0.00016438,2]
[366293996,1750177838686,-177.37190149,0.00016438,2]
[366293997,1750177838697,-413.9837875,0.00016438,2]
[366293998,1750177838707,-490.0,0.00016438,2]
[366293999,1750177838719,-500.0,0.00016438,2]
[366294000,1750177838732,-200.0,0.00016438,2]
[366294001,1750177838742,-490.0,0.00016438,2]
[366294002,1750177838753,-490.0,0.00016438,2]
[366294003,1750177838765,-485.70841072,0.00016438,2]
[366294004,1750177838775,-490.0,0.00016438,2]
[366294005,1750177838785,-490.0,0.00016438,2]
[366294006,1750177838796,-490.0,0.00016438,2]
[366294007,1750177838807,-490.0,0.00016438,2]
[366294008,1750177838817,-201.605865,0.00016438,2]
[366294009,1750177838830,-490.0,0.00016438,2]
[366294010,1750177838840,-201.605865,0.00016438,2]
[366294011,1750177838850,-490.0,0.00016438,2]
[366294012,1750177838860,-151.0,0.00016438,2]
[366294013,1750177838870,-187.440199,0.00016438,2]
[366294014,1750177838881,-490.0,0.00016438,2]
[366294015,1750177838891,-187.440199,0.00016438,2]
[366294016,1750177838901,-428.99490524,0.00016438,2]
[366294017,1750177838910,-490.0,0.00016438,2]
[366294018,1750177838920,-2385.084473,0.00016438,2]
[366294019,1750177838929,-151.0,0.00016438,2]
[366294020,1750177838939,-158.765337,0.00016438,2]
[366294021,1750177838950,-490.0,0.00016438,2]
[366294022,1750177838960,-3465.631967,0.00016438,2]
[366294023,1750177838970,-151.0,0.00016438,2]
[366294024,1750177838980,-162.81244,0.00016438,2]
[366294025,1750177838989,-490.0,0.00016438,2]
[366294026,1750177839000,-3465.631967,0.00016438,2]
[366294027,1750177839010,-490.0,0.00016438,2]
[366294028,1750177839020,-151.0,0.00016438,2]
[366294029,1750177839030,-490.0,0.00016438,2]
[366294030,1750177839040,-490.0,0.00016438,2]
[366294031,1750177839050,-2643.996566,0.00016438,2]
[366294032,1750177839061,-690.0,0.00016438,2]
[366294033,1750177839073,-504.79500773,0.00016438,2]
[366294034,1750177839086,-490.0,0.00016438,2]
[366294035,1750177839097,-490.0,0.00016438,2]
[366294036,1750177839106,-490.0,0.00016438,2]
[366294037,1750177839117,-490.0,0.00016438,2]
[366294038,1750177839129,-490.0,0.00016438,2]
[366294039,1750177839139,-490.0,0.00016438,2]
[366294040,1750177839149,-490.0,0.00016438,2]
[366294041,1750177839160,-490.0,0.00016438,2]
[366294042,1750177839170,-490.0,0.00016438,2]
[366294043,1750177839180,-490.0,0.00016438,2]
[366294044,1750177839190,-550.0,0.00016438,2]
[366294045,1750177839201,-490.0,0.00016438,2]
[366294046,1750177839211,-490.0,0.00016438,2]
[366294047,1750177839221,-490.0,0.00016438,2]
[366294048,1750177839231,-490.0,0.00016438,2]
[366294049,1750177839241,-490.0,0.00016438,2]
[366294050,1750177839251,-490.0,0.00016438,2]
[366294051,1750177839261,-490.0,0.00016438,2]
[366294052,1750177839272,-490.0,0.00016438,2]
[366294053,1750177839282,-490.0,0.00016438,2]
[366294054,1750177839293,-490.0,0.00016438,2]
[366294055,1750177839303,-490.0,0.00016438,2]
[366294056,1750177839313,-490.0,0.00016438,2]
[366294057,1750177839323,-490.0,0.00016438,2]
[366294058,1750177839334,-680.02,0.00016438,2]
[366294059,1750177839344,-490.0,0.00016438,2]
[366294060,1750177839354,-490.0,0.00016438,2]
[366294061,1750177839364,-815.02,0.00016438,2]
[366294062,1750177839374,-232.176613,0.00016438,2]
[366294063,1750177839385,-490.0,0.00016438,2]
[366294064,1750177839395,-490.0,0.00016438,2]
[366294065,1750177839405,-490.0,0.00016438,2]
[366294066,1750177839415,-490.0,0.00016438,2]
[366294067,1750177839425,-490.0,0.00016438,2]
[366294068,1750177839436,-232.176613,0.00016438,2]
[366294069,1750177839447,-490.0,0.00016438,2]
[366294070,1750177839457,-642.69,0.00016438,2]
[366294071,1750177839467,-392.19234089,0.00016438,2]
[366294072,1750177839476,-513.09,0.00016438,2]
[366294073,1750177839486,-490.0,0.00016438,2]
[366294075,1750177839496,-490.0,0.00016438,2]
[366294076,1750177839506,-490.0,0.00016438,2]
[366294077,1750177839516,-490.0,0.00016438,2]
[366294078,1750177839526,-490.0,0.00016438,2]
[366294079,1750177839536,-490.0,0.00016438,2]
[366294080,1750177839546,-490.0,0.00016438,2]
[366294081,1750177839556,-490.0,0.00016438,2]
[366294082,1750177839566,-490.0,0.00016438,2]
[366294083,1750177839577,-434.88943187,0.00016438,2]
[366294084,1750177839588,-553.13,0.00016438,2]
[366294085,1750177839598,-490.0,0.00016438,2]
[366294086,1750177839609,-940.17,0.00016438,2]
[366294087,1750177839619,-615.88,0.00016438,2]
[366294088,1750177839629,-490.0,0.00016438,2]
[366294089,1750177839639,-490.0,0.00016438,2]
[366294090,1750177839650,-631.98971268,0.00016438,2]
[366294091,1750177839662,-486.00693823,0.00016438,2]
[366294092,1750177839672,-490.0,0.00016438,2]
[366294093,1750177839683,-520.3,0.00016438,2]
[366294094,1750177839694,-490.0,0.00016438,2]
[366294095,1750177839704,-462.78680253,0.00016438,2]
[366294096,1750177839728,-490.0,0.00016438,2]
[366294097,1750177839740,-490.0,0.00016438,2]
[366294098,1750177839751,-490.0,0.00016438,2]
[366294099,1750177839762,-490.0,0.00016438,2]
[366294100,1750177839774,-490.0,0.00016438,2]
[366294101,1750177839785,-372.60533761,0.00016438,2]
[366294102,1750177839796,-490.0,0.00016438,2]
[366294103,1750177839808,-490.0,0.00016438,2]
[366294104,1750177839819,-490.0,0.00016438,2]
[366294105,1750177839831,-305.72,0.00016438,2]
[366294106,1750177839842,-490.0,0.00016438,2]
[366294107,1750177839852,-490.0,0.00016438,2]
[366294108,1750177839863,-553.27,0.00016438,2]
[366294109,1750177839875,-490.0,0.00016438,2]
[366294110,1750177839886,-490.0,0.00016438,2]
[366294111,1750177839897,-490.0,0.00016438,2]
[366294112,1750177839914,-490.0,0.00016438,2]
[366294113,1750177839927,-490.0,0.00016438,2]
[366294114,1750177839938,-217.98616263,0.00016438,2]
[366294115,1750177839951,-490.0,0.00016438,2]
[366294116,1750177839963,-490.0,0.00016438,2]
[366294117,1750177839975,-490.0,0.00016438,2]
[366294118,1750177839987,-490.0,0.00016438,2]
[366294119,1750177839998,-490.0,0.00016438,2]
[366294120,1750177840010,-490.0,0.00016438,2]
[366294121,1750177840021,-490.0,0.00016438,2]
[366294122,1750177840033,-321.16278018,0.00016438,2]
[366294123,1750177841756,-168.83721982,0.00016438,2]
[366294124,1750177841766,-595.42316138,0.00016438,2]
[366294135,1750177842896,-435.02360761,0.00016438,2]
[366294136,1750177842906,-490.0,0.00016438,2]
[366294137,1750177842915,-490.0,0.00016438,2]
[366294138,1750177842925,-490.0,0.00016438,2]
[366294139,1750177842935,-806.4,0.00016438,2]
[366294140,1750177842947,-490.0,0.00016438,2]
[366294142,1750177842957,-608.74,0.00016438,2]
[366294143,1750177842967,-602.49795146,0.00016438,2]
[366294144,1750177842977,-517.23078918,0.00016438,2]
[366294145,1750177842986,-490.0,0.00016438,2]
[366294146,1750177842996,-490.0,0.00016438,2]
[366294148,1750177843006,-490.0,0.00016438,2]
[366294150,1750177843016,-490.0,0.00016438,2]
[366294151,1750177843026,-490.0,0.00016438,2]
[366294152,1750177843037,-465.76145024,0.00016438,2]
[366294153,1750177843047,-490.0,0.00016438,2]
[366294154,1750177843056,-490.0,0.00016438,2]
[366294155,1750177843066,-490.0,0.00016438,2]
[366294156,1750177843077,-490.0,0.00016438,2]
[366294157,1750177843089,-490.0,0.00016438,2]
[366294158,1750177843100,-490.0,0.00016438,2]
[366294159,1750177843109,-490.0,0.00016438,2]
[366294160,1750177843119,-490.0,0.00016438,2]
[366294161,1750177843128,-344.04143313,0.00016438,2]
[366294162,1750177843155,-145.95856687,0.00016438,2]
[366294163,1750177843165,-426.58434107,0.00016438,2]
[366294164,1750177843176,-490.0,0.00016438,2]
[366294165,1750177843185,-490.0,0.00016438,2]
[366294166,1750177843199,-490.0,0.00016438,2]
[366294167,1750177843209,-490.0,0.00016438,2]
[366294168,1750177843219,-490.0,0.00016438,2]
[366294169,1750177843228,-368.31307053,0.00016438,2]
[366294170,1750177843244,-121.68692947,0.00016438,2]
[366294171,1750177843254,-490.3903839,0.00016438,2]
[366294172,1750177843264,-490.0,0.00016438,2]
[366294174,1750177843373,-504.27,0.00016438,2]
[366294175,1750177843384,-56.27431402,0.00016438,2]
[366294176,1750177843396,-433.72568598,0.00016438,2]
[366294177,1750177843406,-1130.42,0.00016438,2]
[366294178,1750177843415,-490.0,0.00016438,2]
[366294179,1750177843425,-490.0,0.00016438,2]
[366294180,1750177843434,-490.0,0.00016438,2]
[366294181,1750177843445,-490.0,0.00016438,2]
[366294182,1750177843455,-490.0,0.00016438,2]
[366294183,1750177843465,-3.57152386,0.00016438,2]
[366294184,1750177843487,-486.42847614,0.00016438,2]
[366294185,1750177843496,-490.0,0.00016438,2]
[366294186,1750177843506,-490.0,0.00016438,2]
[366294187,1750177843515,-98.42152386,0.00016438,2]
[366294188,1750177843624,-391.57847614,0.00016438,2]
[366294189,1750177843634,-206.95596649,0.00016438,2]
[366294190,1750177843645,-283.04403351,0.00016438,2]
[366294191,1750177843654,-191.31763596,0.00016438,2]
[366294192,1750177843667,-298.68236404,0.00016438,2]
[366294193,1750177843677,-490.0,0.00016438,2]
[366294194,1750177843686,-490.0,0.00016438,2]
[366294196,1750177843698,-490.0,0.00016438,2]
[366294197,1750177843708,-490.0,0.00016438,2]
[366294198,1750177843718,-490.0,0.00016438,2]
[366294199,1750177843727,-490.0,0.00016438,2]
[366294200,1750177843736,-490.0,0.00016438,2]
[366294201,1750177843745,-490.0,0.00016438,2]
[366294202,1750177843754,-490.0,0.00016438,2]
[366294203,1750177843764,-556.85,0.00016438,2]
[366294204,1750177843774,-490.0,0.00016438,2]
[366294205,1750177843784,-490.0,0.00016438,2]
[366294206,1750177843794,-490.0,0.00016438,2]
[366294207,1750177843803,-490.32673116,0.00016438,2]
[366294208,1750177843813,-490.0,0.00016438,2]
[366294209,1750177843823,-490.0,0.00016438,2]
[366294210,1750177843833,-649.94,0.00016438,2]
[366294211,1750177843844,-490.0,0.00016438,2]
[366294212,1750177843854,-494.26277114,0.00016438,2]
[366294213,1750177843863,-490.0,0.00016438,2]
[366294214,1750177843872,-196.8445674,0.00016438,2]
[366294215,1750177843882,-230.8149772,0.00016438,2]
[366294216,1750177843891,-490.0,0.00016438,2]
[366294217,1750177843901,-490.0,0.00016438,2]
[366294218,1750177843910,-490.0,0.00016438,2]
[366294219,1750177843920,-490.0,0.00016438,2]
[366294220,1750177843929,-490.0,0.00016438,2]
[366294221,1750177843939,-490.0,0.00016438,2]
[366294222,1750177843950,-593.44169083,0.00016438,2]
[366294223,1750177843960,-513.81,0.00016438,2]
[366294224,1750177843969,-490.0,0.00016438,2]
[366294225,1750177843979,-490.0,0.00016438,2]
[366294226,1750177843989,-490.0,0.00016438,2]
[366294227,1750177843998,-490.0,0.00016438,2]
[366294228,1750177844009,-605.66,0.00016438,2]
[366294229,1750177844018,-490.0,0.00016438,2]
[366294230,1750177844027,-490.0,0.00016438,2]
[366294231,1750177844036,-490.0,0.00016438,2]
[366294232,1750177844046,-490.0,0.00016438,2]
[366294233,1750177844056,-490.0,0.00016438,2]
[366294234,1750177844066,-490.0,0.00016438,2]
[366294235,1750177844077,-490.0,0.00016438,2]
[366294236,1750177844089,-490.0,0.00016438,2]
[366294237,1750177844099,-490.0,0.00016438,2]
[366294238,1750177844109,-490.0,0.00016438,2]
[366294239,1750177844119,-420.82110946,0.00016438,2]
[366294240,1750177844130,-490.0,0.00016438,2]
[366294241,1750177844140,-490.0,0.00016438,2]
[366294242,1750177844149,-490.0,0.00016438,2]
[366294243,1750177844160,-490.0,0.00016438,2]
[366294244,1750177844170,-490.0,0.00016438,2]
[366294245,1750177844180,-294.58295239,0.00016438,2]
[366294246,1750177844189,-490.0,0.00016438,2]
[366294247,1750177844200,-490.0,0.00016438,2]
[366294248,1750177844210,-490.0,0.00016438,2]
[366294249,1750177844220,-794.59,0.00016438,2]
[366294250,1750177844230,-490.0,0.00016438,2]
[366294251,1750177844241,-490.0,0.00016438,2]
[366294252,1750177844251,-490.0,0.00016438,2]
[366294253,1750177844261,-490.0,0.00016438,2]
[366294254,1750177844271,-490.0,0.00016438,2]
[366294255,1750177844280,-490.0,0.00016438,2]
[366294256,1750177844290,-490.0,0.00016438,2]
[366294257,1750177844301,-490.0,0.00016438,2]
[366294258,1750177844310,-490.0,0.00016438,2]
[366294259,1750177844320,-490.0,0.00016438,2]
[366294260,1750177844330,-490.0,0.00016438,2]
[366294261,1750177844340,-490.0,0.00016438,2]
[366294262,1750177844350,-490.0,0.00016438,2]
[366294263,1750177844360,-490.0,0.00016438,2]
[366294264,1750177844370,-730.0,0.00016438,2]
[366294265,1750177844380,-490.0,0.00016438,2]
[366294266,1750177844391,-490.0,0.00016438,2]
[366294267,1750177844401,-490.0,0.00016438,2]
[366294268,1750177844410,-490.0,0.00016438,2]
[366294269,1750177844419,-490.0,0.00016438,2]
[366294270,1750177844429,-490.0,0.00016438,2]
[366294271,1750177844438,-490.0,0.00016438,2]
[366294272,1750177844448,-490.0,0.00016438,2]
[366294273,1750177844457,-490.0,0.00016438,2]
[366294274,1750177844466,-490.0,0.00016438,2]
[366294275,1750177844477,-490.0,0.00016438,2]
[366294276,1750177844487,-490.0,0.00016438,2]
[366294277,1750177844496,-490.0,0.00016438,2]